fUST/lending_fUST_20241002
["ID","MTS","AMOUNT","RATE_DAILY","PERIOD"]
[339653127,1727812240352,-299.16835449,0.00013851,2]
[339653128,1727812240362,-500.0,0.00013851,2]
[339653129,1727812240371,-195.49156807,0.00013851,2]
[339653130,1727812240381,-500.0,0.00013851,2]
[339653131,1727812240390,-500.0,0.00013851,2]
[339653132,1727812240399,-500.0,0.00013851,2]
[339653133,1727812240408,-500.0,0.00013851,2]
[339653134,1727812240418,-500.0,0.00013851,2]
[339653135,1727812240431,-168.79041302,0.00013851,2]
[339653136,1727812240441,-500.0,0.00013851,2]
[339653137,1727812240450,-500.0,0.00013851,2]
[339653138,1727812240462,-212.82931196,0.00013851,2]
[339653139,1727812240472,-424.65323288,0.00013851,2]
[339653140,1727812240481,-500.0,0.00013851,2]
[339653141,1727812240491,-500.0,0.00013851,2]
[339653142,1727812240500,-500.0,0.00013851,2]
[339653143,1727812240510,-500.0,0.00013851,2]
[339653144,1727812240520,-500.0,0.00013851,2]
[339653145,1727812240530,-20766.42459778,0.00013852,2]
[339653146,1727812240539,-39340.0417337,0.00013852,2]
[339653147,1727812240548,-247.267469,0.00013852,2]
[339653148,1727812240558,-151.0,0.00013853,2]
[339653149,1727812240567,-279.33733,0.00013853,2]
[339653150,1727812240577,-151.0,0.00013853,2]
[339653151,1727812240586,-67408.7745522,0.00013853,2]
[339653152,1727812240595,-39340.0417337,0.00013853,2]
[339653153,1727812240605,-39608.87538345,0.00013854,2]
[339653154,1727812240615,-133378.48205828,0.00013854,2]
[339653155,1727812240632,-2405.29759885,0.00013854,2]
[339653185,1727812242774,-1028.95,0.00013854,2]
[339653186,1727812242837,-2007.72495484,0.00013854,2]
[339653209,1727812245918,-553.55499468,0.00013851,2]
[339653210,1727812245928,-553.55499468,0.00013851,2]
[339653211,1727812245938,-553.55499468,0.00013851,2]
[339653212,1727812245948,-553.55499468,0.00013851,2]
[339653213,1727812245963,-553.55499468,0.00013851,2]
[339653214,1727812246138,-553.55499468,0.00013851,2]
[339653216,1727812246149,-553.55499468,0.00013851,2]
[339653218,1727812246159,-553.55499468,0.00013851,2]
[339653219,1727812246170,-553.55499468,0.00013851,2]
[339653220,1727812246180,-553.55499468,0.00013851,2]
[339653221,1727812246191,-553.55499468,0.00013851,2]
[339653222,1727812246200,-553.55499468,0.00013851,2]
[339653223,1727812246213,-101.17154774,0.00013851,2]
[339653224,1727812246227,-452.38344694,0.00013851,2]
[339653225,1727812246236,-553.55499468,0.00013851,2]
[339653226,1727812246248,-553.55499468,0.00013851,2]
[339653227,1727812246258,-553.55499468,0.00013851,2]
[339653228,1727812246267,-149.00408872,0.00013854,2]
[339653229,1727812376567,-1000.0,0.00016,13]
[339653232,1727812450689,-445.0,0.000158,7]
[339653233,1727812505347,-200.0,0.00021656,120]
[339653234,1727812505385,-500.0,0.00021917,120]
[339653235,1727812505417,-300.0,0.00021917,120]
[339653236,1727812510143,-200.0,0.00021917,120]
[339653237,1727812510178,-500.0,0.00021917,120]
[339653238,1727812510207,-300.0,0.00021917,120]
[339653239,1727812524399,-200.0,0.00021917,120]
[339653240,1727812524440,-500.0,0.00021917,120]
[339653241,1727812524467,-500.0,0.00021917,120]
[339653242,1727812524494,-500.0,0.00021917,120]
[339653243,1727812524523,-300.0,0.00021917,120]
[339653244,1727812534428,-195.35301716,0.00021917,120]
[339653245,1727812534462,-1000.0,0.00022,120]
[339653246,1727812625460,-403.8547984,0.0002208,120]
[339653247,1727812625504,-158.0,0.0002248,120]
[339653263,1727813384166,170.0,0.0002288,120]
[339653264,1727813429802,549.99,0.0002288,120]
[339653302,1727813433717,-300.0,0.00012672,2]
[339653304,1727813433728,-8.43749623,0.00012673,2]
[339653333,1727813437811,-2188.55144105,0.00012673,2]
[339653344,1727813439817,-22703.01106272,0.00012673,2]
[339653345,1727813439828,-515.52719228,0.00013594,2]
[339653346,1727813439838,-932.7604265,0.00013611,2]
[339653347,1727813439847,-7193.10270582,0.00013611,2]
[339653348,1727813439857,-523.69882587,0.0001366,2]
[339653349,1727813439867,-523.69882587,0.00013673,2]
[339653350,1727813439877,-523.69882587,0.00013686,2]
[339653351,1727813439886,-476.0931903,0.00013696,2]
[339653352,1727813439896,-453.879151,0.00013699,2]
[339653353,1727813439906,-523.69882587,0.00013699,2]
[339653354,1727813439916,-523.69882587,0.00013712,2]
[339653355,1727813439926,-1000.0,0.00013721,2]
[339653356,1727813439935,-5941.42465319,0.00013725,2]
[339653357,1727813439945,-17625.28858401,0.0001376,2]
[339653358,1727813439954,-1113.13409139,0.00013772,2]
[339653359,1727813439963,-150.112233,0.000138,2]
[339653360,1727813439973,-500.0,0.00013808,2]
[339653361,1727813439982,-500.0,0.00013808,2]
[339653362,1727813439991,-500.0,0.00013808,2]
[339653363,1727813440000,-152.16921635,0.00013808,2]
[339653364,1727813440010,-500.0,0.00013808,2]
[339653365,1727813440019,-500.0,0.00013808,2]
[339653366,1727813440028,-500.0,0.00013808,2]
[339653367,1727813440038,-500.0,0.00013808,2]
[339653368,1727813440047,-500.0,0.00013808,2]
[339653369,1727813440056,-500.0,0.00013808,2]
[339653370,1727813440065,-500.0,0.00013808,2]
[339653371,1727813440075,-500.0,0.00013808,2]
[339653372,1727813440085,-500.0,0.00013808,2]
[339653373,1727813440095,-500.0,0.00013808,2]
[339653374,1727813440104,-500.0,0.00013808,2]
[339653375,1727813440113,-500.0,0.00013808,2]
[339653376,1727813440122,-500.0,0.00013808,2]
[339653377,1727813440131,-500.0,0.00013808,2]
[339653378,1727813440141,-500.0,0.00013808,2]
[339653379,1727813440150,-500.0,0.00013808,2]
[339653380,1727813440160,-500.0,0.00013808,2]
[339653381,1727813440169,-500.0,0.00013808,2]
[339653382,1727813440178,-500.0,0.00013808,2]
[339653383,1727813440187,-500.0,0.00013808,2]
[339653384,1727813440197,-500.0,0.00013808,2]
[339653385,1727813440206,-500.0,0.00013808,2]
[339653386,1727813440215,-500.0,0.00013808,2]
[339653387,1727813440224,-500.0,0.00013808,2]
[339653388,1727813440233,-500.0,0.00013808,2]
[339653389,1727813440242,-500.0,0.00013808,2]
[339653390,1727813440251,-500.0,0.00013808,2]
[339653391,1727813440260,-500.0,0.00013808,2]
[339653392,1727813440270,-500.0,0.00013808,2]
[339653393,1727813440279,-500.0,0.00013808,2]
[339653394,1727813440290,-500.0,0.00013808,2]
[339653395,1727813440299,-500.0,0.00013808,2]
[339653396,1727813440308,-500.0,0.00013808,2]
[339653397,1727813440318,-500.0,0.00013808,2]
[339653398,1727813440329,-500.0,0.00013808,2]
[339653399,1727813440339,-500.0,0.00013808,2]
[339653400,1727813440348,-500.0,0.00013808,2]
[339653401,1727813440358,-500.0,0.00013808,2]
[339653402,1727813440367,-500.0,0.00013808,2]
[339653403,1727813440376,-500.0,0.00013808,2]
[339653404,1727813440386,-500.0,0.00013808,2]
[339653405,1727813440395,-500.0,0.00013808,2]
[339653406,1727813440405,-500.0,0.00013808,2]
[339653407,1727813440415,-500.0,0.00013808,2]
[339653408,1727813440424,-500.0,0.00013808,2]
[339653409,1727813440435,-500.0,0.00013808,2]
[339653410,1727813440445,-500.0,0.00013808,2]
[339653411,1727813440454,-500.0,0.00013808,2]
[339653412,1727813440463,-160.45778762,0.00013808,2]
[339653413,1727813440472,-500.0,0.00013808,2]
[339653414,1727813440482,-500.0,0.00013808,2]
[339653415,1727813440491,-500.0,0.00013808,2]
[339653416,1727813440500,-500.0,0.00013808,2]
[339653417,1727813440510,-1255.69918572,0.00013808,2]
[339653418,1727813440520,-1255.69918572,0.00013808,2]
[339653419,1727813440529,-1255.69918572,0.00013808,2]
[339653420,1727813440538,-1255.69918572,0.00013808,2]
[339653421,1727813440548,-1255.69918572,0.00013808,2]
[339653422,1727813440558,-1255.69918572,0.00013808,2]
[339653423,1727813440568,-1255.69918572,0.00013808,2]
[339653424,1727813440581,-1255.69918572,0.00013808,2]
[339653425,1727813440590,-1255.69918572,0.00013808,2]
[339653426,1727813440600,-1255.69918572,0.00013808,2]
[339653427,1727813440609,-1255.69918572,0.00013808,2]
[339653428,1727813440618,-1255.69918572,0.00013808,2]
[339653429,1727813440627,-1255.69918572,0.00013808,2]
[339653430,1727813440636,-1255.69918572,0.00013808,2]
[339653431,1727813440646,-1255.69918572,0.00013808,2]
[339653432,1727813440655,-1255.69918572,0.00013808,2]
[339653433,1727813440664,-1255.69918572,0.00013808,2]
[339653434,1727813440673,-1255.69918572,0.00013808,2]
[339653435,1727813440682,-1255.69918572,0.00013808,2]
[339653436,1727813440691,-1255.69918572,0.00013808,2]
[339653437,1727813440700,-1255.69918572,0.00013808,2]
[339653438,1727813440709,-1255.69918572,0.00013808,2]
[339653439,1727813440718,-1255.69918572,0.00013808,2]
[339653440,1727813440727,-1255.69918572,0.00013808,2]
[339653441,1727813440736,-1255.69918572,0.00013808,2]
[339653442,1727813440745,-1255.69918572,0.00013808,2]
[339653443,1727813440755,-1255.69918572,0.00013808,2]
[339653444,1727813440764,-1255.69918572,0.00013808,2]
[339653445,1727813440773,-1255.69918572,0.00013808,2]
[339653446,1727813440782,-1255.69918572,0.00013808,2]
[339653447,1727813440791,-1255.69918572,0.00013808,2]
[339653448,1727813440801,-1255.69918572,0.00013808,2]
[339653449,1727813440810,-1255.69918572,0.00013808,2]
[339653450,1727813440819,-1255.69918578,0.00013808,2]
[339653451,1727813440831,-1255.69918578,0.00013808,2]
[339653452,1727813440840,-1255.69918578,0.00013808,2]
[339653453,1727813440850,-7656.57107211,0.00013809,2]
[339653454,1727813440859,-102234.933455,0.00013809,2]
[339653455,1727813440868,-2552.19035737,0.00013811,2]
[339653456,1727813440877,-34078.3111518,0.00013811,2]
[339653457,1727813440886,-500.0,0.00013817,2]
[339653458,1727813440896,-500.0,0.00013817,2]
[339653459,1727813440906,-299.16835449,0.00013817,2]
[339653460,1727813440915,-500.0,0.00013817,2]
[339653461,1727813440924,-500.0,0.00013817,2]
[339653462,1727813440934,-500.0,0.00013817,2]
[339653463,1727813440943,-500.0,0.00013817,2]
[339653464,1727813440952,-500.0,0.00013817,2]
[339653465,1727813440962,-424.65323288,0.00013817,2]
[339653466,1727813440972,-500.0,0.00013817,2]
[339653467,1727813440982,-500.0,0.00013817,2]
[339653468,1727813440991,-317.21804255,0.00013817,2]
[339653469,1727813441000,-500.0,0.00013817,2]
[339653470,1727813441009,-5104.38071474,0.00013818,2]
[339653471,1727813441020,-68156.6223036,0.00013818,2]
[339653472,1727813441029,-2552.19035737,0.0001382,2]
[339653473,1727813441039,-32373.4769112,0.0001382,2]
[339653474,1727813441056,-1704.8342406,0.0001382,2]
[339653475,1727813441066,-1461.29980826,0.00013823,2]
[339653490,1727813442938,-500.0,0.00013817,2]
[339653491,1727813442948,-65.33220749,0.00013817,2]
[339653492,1727813442960,-130.15936058,0.00013817,2]
[339653493,1727813442971,-500.0,0.00013817,2]
[339653494,1727813442980,-500.0,0.00013817,2]
[339653496,1727813442990,-500.0,0.00013817,2]
[339653499,1727813443001,-212.82931196,0.00013817,2]
[339653501,1727813443011,-1090.89054911,0.00013823,2]
[339653503,1727813443023,-261.67792923,0.00013823,2]
[339653504,1727813443037,-6283.15107741,0.00013823,2]
[339653513,1727813446093,-3000.0,0.00013823,2]
[339657042,1727814416534,600.0,0.00023,120]
[339657043,1727814440697,118.1552016,0.0002288,120]
[339657118,1727814634084,-300.0,0.00012608,2]
[339657120,1727814634094,-2382.81490726,0.00012609,2]
[339657132,1727814634198,-604.99334449,0.00012609,2]
[339657166,1727814638028,-20122.40357795,0.00012609,2]
[339657167,1727814638038,-451.08629328,0.00013671,2]
[339657168,1727814638047,-4294.10055364,0.00013697,2]
[339657169,1727814638057,-355.171845,0.00013699,2]
[339657170,1727814638066,-1000.0,0.00013736,2]
[339657171,1727814638076,-621.84028433,0.00013736,2]
[339657172,1727814638085,-1001.82068226,0.0001375,2]
[339657173,1727814638095,-14487.9645293,0.00013771,2]
[339657174,1727814638104,-28387.6098436,0.00013823,2]
[339657175,1727814638114,-56775.2196872,0.00013826,2]
[339657176,1727814638125,-500.0,0.00013828,2]
[339657177,1727814638134,-529.82420183,0.00013828,2]
[339657178,1727814638144,-500.0,0.00013828,2]
[339657179,1727814638155,-500.0,0.00013828,2]
[339657180,1727814638166,-500.0,0.00013828,2]
[339657181,1727814638177,-500.0,0.00013828,2]
[339657182,1727814638189,-435.87745972,0.00013828,2]
[339657183,1727814638198,-500.0,0.00013828,2]
[339657184,1727814638207,-500.0,0.00013828,2]
[339657185,1727814638216,-500.0,0.00013828,2]
[339657186,1727814638225,-500.0,0.00013828,2]
[339657187,1727814638234,-500.0,0.00013828,2]
[339657188,1727814638244,-500.0,0.00013828,2]
[339657189,1727814638254,-500.0,0.00013828,2]
[339657190,1727814638263,-500.0,0.00013828,2]
[339657191,1727814638273,-500.0,0.00013828,2]
[339657192,1727814638282,-500.0,0.00013828,2]
[339657193,1727814638291,-500.0,0.00013828,2]
[339657194,1727814638301,-500.0,0.00013828,2]
[339657195,1727814638310,-500.0,0.00013828,2]
[339657196,1727814638320,-500.0,0.00013828,2]
[339657197,1727814638329,-500.0,0.00013828,2]
[339657198,1727814638338,-500.0,0.00013828,2]
[339657199,1727814638349,-500.0,0.00013828,2]
[339657200,1727814638358,-500.0,0.00013828,2]
[339657201,1727814638368,-500.0,0.00013828,2]
[339657202,1727814638377,-500.0,0.00013828,2]
[339657203,1727814638386,-500.0,0.00013828,2]
[339657204,1727814638395,-500.0,0.00013828,2]
[339657205,1727814638404,-500.0,0.00013828,2]
[339657206,1727814638413,-500.0,0.00013828,2]
[339657207,1727814638423,-500.0,0.00013828,2]
[339657208,1727814638433,-500.0,0.00013828,2]
[339657209,1727814638444,-500.0,0.00013828,2]
[339657210,1727814638453,-500.0,0.00013828,2]
[339657211,1727814638463,-500.0,0.00013828,2]
[339657212,1727814638472,-500.0,0.00013828,2]
[339657213,1727814638482,-648.76688562,0.00013828,2]
[339657214,1727814638493,-500.0,0.00013828,2]
[339657215,1727814638503,-500.0,0.00013828,2]
[339657216,1727814638513,-500.0,0.00013828,2]
[339657217,1727814638522,-500.0,0.00013828,2]
[339657218,1727814638531,-28387.6098436,0.0001383,2]
[339657219,1727814638541,-10359.74343183,0.00013831,2]
[339657220,1727814638553,-74803.08609897,0.00013831,2]
[339657221,1727814638562,-373.21929103,0.00013833,2]
[339657222,1727814638595,-46.78070897,0.00013833,2]
[339657223,1727814638605,-402.68064808,0.00013839,2]
[339657224,1727814638617,-97.31935192,0.00013839,2]
[339657225,1727814638628,-209.41784815,0.00013839,2]
[339657226,1727814638639,-500.0,0.00013839,2]
[339657227,1727814638649,-500.0,0.00013839,2]
[339657228,1727814638660,-500.0,0.00013839,2]
[339657229,1727814638672,-500.0,0.00013839,2]
[339657230,1727814638683,-463.08441005,0.00013839,2]
[339657231,1727814638695,-500.0,0.00013839,2]
[339657232,1727814638706,-500.0,0.00013839,2]
[339657233,1727814638717,-500.0,0.00013839,2]
[339657234,1727814638726,-496.3423457,0.00013839,2]
[339657235,1727814638737,-500.0,0.00013839,2]
[339657236,1727814638748,-232.14091382,0.00013839,2]
[339657237,1727814638762,-500.0,0.00013839,2]
[339657238,1727814638771,-99.69513036,0.00013839,2]
[339657268,1727814640040,-250.76015273,0.00013839,2]
[339657298,1727814643205,-149.54471691,0.00013839,2]
[339657299,1727814643216,-500.0,0.00013839,2]
[339657300,1727814643227,-500.0,0.00013839,2]
[339657301,1727814643236,-500.0,0.00013839,2]
[339657302,1727814643246,-500.0,0.00013839,2]
[339657303,1727814643256,-500.0,0.00013839,2]
[339657305,1727814643265,-500.0,0.00013839,2]
[339657306,1727814643274,-500.0,0.00013839,2]
[339657307,1727814643284,-500.0,0.00013839,2]
[339657308,1727814643294,-500.0,0.00013839,2]
[339657309,1727814643304,-500.0,0.00013839,2]
[339657310,1727814643314,-500.0,0.00013839,2]
[339657311,1727814643324,-500.0,0.00013839,2]
[339657312,1727814643334,-500.0,0.00013839,2]
[339657313,1727814643345,-500.0,0.00013839,2]
[339657314,1727814643355,-500.0,0.00013839,2]
[339657315,1727814643364,-500.0,0.00013839,2]
[339657316,1727814643374,-500.0,0.00013839,2]
[339657318,1727814643384,-500.0,0.00013839,2]
[339657319,1727814643395,-350.0,0.00013839,2]
[339657321,1727814643407,-500.0,0.00013839,2]
[339657323,1727814643418,-195.0,0.00013839,2]
[339657324,1727814643428,-500.0,0.00013839,2]
[339657326,1727814643440,-500.0,0.00013839,2]
[339657327,1727814643452,-56775.2196872,0.0001384,2]
[339657328,1727814643461,-195.034071,0.00013842,2]
[339657329,1727814643471,-151.0,0.00013842,2]
[339657330,1727814643480,-151.0,0.00013842,2]
[339657331,1727814643489,-151.0,0.00013842,2]
[339657332,1727814643499,-195.034071,0.0001385,2]
[339657333,1727814643511,-151.0,0.0001385,2]
[339657334,1727814643523,-151.0,0.0001385,2]
[339657335,1727814643534,-157.993333,0.0001385,2]
[339657336,1727814643544,-157.993333,0.0001385,2]
[339657337,1727814643556,-151.0,0.0001385,2]
[339657338,1727814643566,-464.935917,0.0001385,2]
[339657339,1727814643576,-151.0,0.0001385,2]
[339657340,1727814643586,-464.935917,0.0001385,2]
[339657341,1727814643597,-151.0,0.0001385,2]
[339657342,1727814643607,-208.60317498,0.0001385,2]
[339657343,1727814643621,-1647.99244902,0.0001385,2]
[339657344,1727814643632,-1856.595624,0.0001385,2]
[339657345,1727814643642,-357.502498,0.0001385,2]
[339657346,1727814643653,-357.502498,0.0001385,2]
[339657347,1727814643663,-151.0,0.00013851,2]
[339657348,1727814643673,-190.14507,0.00013851,2]
[339657349,1727814643683,-190.14507,0.00013851,2]
[339657350,1727814643693,-328.368327,0.00013851,2]
[339657351,1727814643703,-151.0,0.00013851,2]
[339657352,1727814643712,-328.368327,0.00013851,2]
[339657353,1727814643721,-273.028659,0.00013851,2]
[339657354,1727814643731,-151.0,0.00013851,2]
[339657355,1727814643742,-401.754748,0.00013851,2]
[339657356,1727814643755,-401.754748,0.00013851,2]
[339657357,1727814643766,-151.0,0.00013851,2]
[339657358,1727814643777,-815.668236,0.00013851,2]
[339657359,1727814643788,-296.990799,0.00013851,2]
[339657360,1727814643799,-296.990799,0.00013851,2]
[339657361,1727814643810,-151.0,0.00013851,2]
[339657362,1727814643820,-498.411667,0.00013851,2]
[339657363,1727814643831,-112.83048098,0.00013851,2]
[339657461,1727815834451,-166.666667,0.00012816,2]
[339657462,1727815834462,-4109.83732786,0.00013442,2]
[339657463,1727815834505,-2509.999993,0.00013442,2]
[339657464,1727815834517,-573.26538496,0.00013442,2]
[339657465,1727815834527,-150.0,0.00013612,2]
[339657466,1727815834536,-953.99055991,0.00013632,2]
[339657467,1727815834546,-1260.70977769,0.00013634,2]
[339657468,1727815834556,-300.0,0.00013648,2]
[339657469,1727815834566,-300.0,0.00013648,2]
[339657470,1727815834575,-1260.70977766,0.00013649,2]
[339657471,1727815834584,-476.13483403,0.00013662,2]
[339657472,1727815834777,-1260.70977766,0.00013664,2]
[339657473,1727815834787,-1260.70977766,0.00013679,2]
[339657474,1727815834797,-1260.70977766,0.00013694,2]
[339657475,1727815834806,-388.074281,0.00013699,2]
[339657476,1727815834816,-166.666666,0.00013699,2]
[339657478,1727815834826,-1012.9520232,0.00013721,2]
[339657479,1727815834835,-1894.34263505,0.00013723,2]
[339657480,1727815834845,-12503.70895237,0.0001373,2]
[339657482,1727815834855,-953.18481912,0.0001373,2]
[339657484,1727815834864,-4274.130956,0.0001373,2]
[339657582,1727815838173,-656.87,0.0001373,2]
[339657585,1727815838232,-14567.180912,0.0001373,2]
[339657586,1727815838245,-8808.11192282,0.0001373,2]
[339657587,1727815838289,-18972.63015938,0.0001373,2]
[339657588,1727815838298,-5941.42465319,0.00013734,2]
[339657589,1727815838308,-1000.0,0.00013738,2]
[339657590,1727815838320,-500.0,0.00013775,2]
[339657591,1727815838331,-500.0,0.00013775,2]
[339657592,1727815838342,-500.0,0.00013775,2]
[339657593,1727815838353,-500.0,0.00013775,2]
[339657594,1727815838364,-500.0,0.00013775,2]
[339657595,1727815838375,-486.95229471,0.00013775,2]
[339657596,1727815838385,-500.0,0.00013775,2]
[339657597,1727815838395,-500.0,0.00013775,2]
[339657598,1727815838408,-500.0,0.00013775,2]
[339657599,1727815838419,-500.0,0.00013775,2]
[339657600,1727815838430,-211.39841843,0.00013775,2]
[339657601,1727815838447,-500.0,0.00013775,2]
[339657602,1727815838457,-500.0,0.00013775,2]
[339657603,1727815838469,-500.0,0.00013775,2]
[339657604,1727815838479,-500.0,0.00013775,2]
[339657605,1727815838489,-500.0,0.00013775,2]
[339657606,1727815838501,-500.0,0.00013775,2]
[339657607,1727815838512,-500.0,0.00013775,2]
[339657608,1727815838524,-500.0,0.00013775,2]
[339657609,1727815838535,-500.0,0.00013775,2]
[339657610,1727815838546,-500.0,0.00013775,2]
[339657611,1727815838557,-500.0,0.00013775,2]
[339657612,1727815838567,-500.0,0.00013775,2]
[339657613,1727815838578,-500.0,0.00013775,2]
[339657614,1727815838589,-8058.72664579,0.00013776,2]
[339657636,1727815840198,-6044.2,0.00013776,2]
[339657640,1727815840251,-255.5683535,0.00013776,2]
[339657641,1727815840264,-51434.46798181,0.00013776,2]
[339657642,1727815840274,-824.13370807,0.00013776,2]
[339657643,1727815840284,-65792.9629811,0.00013786,2]
[339657644,1727815840293,-824.13370807,0.00013786,2]
[339657645,1727815840303,-236.34300005,0.00013795,2]
[339657646,1727815840312,-500.0,0.00013795,2]
[339657647,1727815840321,-500.0,0.00013795,2]
[339657648,1727815840331,-500.0,0.00013795,2]
[339657649,1727815840340,-500.0,0.00013795,2]
[339657650,1727815840350,-500.0,0.00013795,2]
[339657651,1727815840359,-255.8244998,0.00013795,2]
[339657652,1727815840368,-500.0,0.00013795,2]
[339657653,1727815840378,-500.0,0.00013795,2]
[339657654,1727815840387,-500.0,0.00013795,2]
[339657655,1727815840397,-500.0,0.00013795,2]
[339657656,1727815840406,-500.0,0.00013795,2]
[339657657,1727815840416,-212.49863968,0.00013795,2]
[339657658,1727815840425,-500.0,0.00013795,2]
[339657659,1727815840437,-500.0,0.00013795,2]
[339657660,1727815840446,-500.0,0.00013795,2]
[339657661,1727815840456,-500.0,0.00013795,2]
[339657662,1727815840465,-624.83561186,0.00013795,2]
[339657663,1727815840475,-500.0,0.00013795,2]
[339657664,1727815840484,-500.0,0.00013795,2]
[339657665,1727815840494,-59774.81932306,0.00013796,2]
[339657666,1727815840503,-183807.31054652,0.00013796,2]
[339657749,1727815843410,-1075.48864695,0.00013695,2]
[339657752,1727815843424,-311.69803547,0.00013695,2]
[339657755,1727815843443,-7416.12424416,0.00013695,2]
[339658163,1727816436586,-172.05,0.00010959,2]
[339658164,1727816436612,-860.27,0.00010959,2]
[339658165,1727816436639,-300.0,0.00012731,2]
[339658166,1727816436665,-8285.5227336,0.00012732,2]
[339658167,1727816436692,-7193.10270582,0.00013463,2]
[339658168,1727816436718,-300.0,0.00013671,2]
[339658169,1727816436745,-834.74173993,0.00013695,2]
[339658170,1727816436769,-3657.31282065,0.00013695,2]
[339658171,1727816488647,3301.28,0.00021,60]
[339658246,1727817032859,-3459.7879075,0.00013666,2]
[339658255,1727817032940,-1014.67046642,0.00013666,2]
[339658775,1727817038546,-2718.6443319,0.00013666,2]
[339658776,1727817038559,-2474.22198148,0.00013672,2]
[339658777,1727817038570,-1000.0,0.00013685,2]
[339658778,1727817038583,-911.65682088,0.00013686,2]
[339658779,1727817038593,-5164.66483678,0.00013695,2]
[339658780,1727817038605,-5079.1104222,0.00013699,2]
[339658781,1727817038615,-258.716187,0.00013699,2]
[339658782,1727817038625,-785.39875401,0.00013704,2]
[339658783,1727817038635,-10646.14283575,0.00013704,2]
[339658784,1727817038647,-3463.23127707,0.00013704,2]
[339658814,1727817040460,-25892.98742717,0.00013704,2]
[339658815,1727817040470,-29780.1105941,0.0001371,2]
[339658816,1727817040482,-1565.85404526,0.00013762,2]
[339658817,1727817040493,-439.57364645,0.00013763,2]
[339658818,1727817040506,-1126.28039881,0.00013763,2]
[339658819,1727817040516,-2348.78106789,0.00013766,2]
[339658820,1727817040526,-734.071111,0.0001377,2]
[339658821,1727817040542,-734.071111,0.0001377,2]
[339658822,1727817040553,-734.071111,0.0001377,2]
[339658823,1727817040564,-734.071111,0.0001377,2]
[339658824,1727817040575,-734.071111,0.0001377,2]
[339658825,1727817040589,-734.071111,0.0001377,2]
[339658826,1727817040600,-734.071111,0.0001377,2]
[339658827,1727817040620,-734.071111,0.0001377,2]
[339658828,1727817040630,-734.071111,0.0001377,2]
[339658829,1727817040642,-734.071111,0.0001377,2]
[339658830,1727817040655,-734.071111,0.0001377,2]
[339658831,1727817040667,-734.071111,0.0001377,2]
[339658832,1727817040678,-734.071111,0.0001377,2]
[339658833,1727817040689,-734.071111,0.0001377,2]
[339658834,1727817040700,-734.071111,0.0001377,2]
[339658835,1727817040710,-734.071111,0.0001377,2]
[339658836,1727817040721,-734.071111,0.0001377,2]
[339658837,1727817040732,-734.071111,0.0001377,2]
[339658838,1727817040744,-734.071111,0.0001377,2]
[339658839,1727817040754,-734.071111,0.0001377,2]
[339658840,1727817040766,-734.071111,0.0001377,2]
[339658841,1727817040778,-734.071111,0.0001377,2]
[339658842,1727817040789,-734.071111,0.0001377,2]
[339658843,1727817040800,-734.071111,0.0001377,2]
[339658844,1727817040811,-734.071111,0.0001377,2]
[339658845,1727817040823,-734.071111,0.0001377,2]
[339658846,1727817040834,-734.071111,0.0001377,2]
[339658847,1727817040845,-734.071111,0.0001377,2]
[339658848,1727817040855,-734.071111,0.0001377,2]
[339658849,1727817040865,-734.071111,0.0001377,2]
[339658850,1727817040877,-734.071111,0.0001377,2]
[339658851,1727817040887,-734.071111,0.0001377,2]
[339658852,1727817040898,-734.071111,0.0001377,2]
[339658853,1727817040912,-734.071111,0.0001377,2]
[339658854,1727817040924,-734.071111,0.0001377,2]
[339658855,1727817040934,-734.071111,0.0001377,2]